Workbook

Sheet отчет
D1: Плановое задание за | E1: =DAY(H1) -> 28 | F1: =план_график!A1 -> 2016-09-01 | H1: 2016-09-28
A2: Наименование | B2: План на месяц, м | C2: план на сутки, м | D2: План с начала месяца, м | E2: Факт. выполнение с начала месяца, м | F2: Выполнено с начала месяца, % | G2: Выполнено к месячному плану, %
A3: Товар 1 | B3: 13000 | C3: 2600 | D3: =C3*FLOOR(COUNTIF(смена!B7:BK7,">0")/2,1) -> 13000 | E3: =смена!BL7 -> 12976 | F3: =IFERROR(E3*100/D3,"") -> 99.81538462 | G3: =IFERROR(E3*100/B3,"") -> 99.81538462
A4: Товар 2 | B4: =VLOOKUP(A4,план_график!$A$2:$D$6,3,0) -> 37500 | C4: =VLOOKUP(A4,план_график!$A$2:$D$6,4,0) -> 7500 | D4: =C4*FLOOR(COUNTIF(смена!B8:BK8,">0")/2,1) -> 37500 | E4: =смена!BL8 -> 37560 | F4: =IFERROR(E4*100/D4,"") -> 100.16 | G4: =IFERROR(E4*100/B4,"") -> 100.16
A5: Товар 3 | B5: =VLOOKUP(A5,план_график!$A$2:$D$6,3,0) -> 193401 | C5: =VLOOKUP(A5,план_график!$A$2:$D$6,4,0) -> 6669 | D5: =C5*COUNTIF(смена!B9:BK9,">0")/2 -> 186732 | E5: =смена!BL9 -> 191952 | F5: 102.7954502 | G5: 99.25077947 | T5: 2016-09-01
T6: 2016-09-02
T7: 2016-09-03
T8: 2016-09-04
T9: 2016-09-05
T10: 2016-09-06
T11: 2016-09-07
T12: 2016-09-08
T13: 2016-09-09
T14: 2016-09-10
T15: 2016-09-11
T16: 2016-09-12
T17: 2016-09-13
T18: 2016-09-14
T19: 2016-09-15
T20: 2016-09-16
T21: 2016-09-17
T22: 2016-09-18
T23: 2016-09-19
T24: 2016-09-20
T25: 2016-09-21
T26: 2016-09-22
T27: 2016-09-23
T28: 2016-09-24
T29: 2016-09-25
T30: 2016-09-26
T31: 2016-09-27
T32: 2016-09-28
T33: 2016-09-29
T34: 2016-09-30

Sheet план_график
A1: 2016-09-01 | B1: № линии | C1: План на месяц | D1: план на сутки | E1: ст. дн. | F1: =A1 -> 2016-09-01 | G1: =F1+1 -> 2016-09-02 | H1: =G1+1 -> 2016-09-03 | I1: 2016-09-04 | J1: 2016-09-05 | K1: 2016-09-06 | L1: 2016-09-07 | M1: 2016-09-08 | N1: 2016-09-09 | O1: 2016-09-10 | P1: 2016-09-11 | Q1: 2016-09-12 | R1: 2016-09-13 | S1: 2016-09-14 | T1: 2016-09-15 | U1: 2016-09-16 | V1: 2016-09-17 | W1: 2016-09-18 | X1: 2016-09-19 | Y1: 2016-09-20 | Z1: 2016-09-21 | AA1: 2016-09-22 | AB1: 2016-09-23 | AC1: 2016-09-24 | AD1: 2016-09-25 | AE1: 2016-09-26 | AF1: 2016-09-27 | AG1: 2016-09-28 | AH1: 2016-09-29 | AI1: 2016-09-30 | AJ1: 2016-10-01
A2: Товар 1 | B2: 7 | C2: 13000 | D2: 2600 | E2: =C2/D2 -> 5 | I2: 2.6 | J2: =I2+2.6 -> 5.2 | K2: =J2+2.6 -> 7.8 | L2: 10.4 | M2: 13
AG3: 12.976
A4: Товар 2 | B4: 6 | C4: 37500 | D4: 7500 | E4: =C4/D4 -> 5 | G4: 7.5 | H4: =G4+7.5 -> 15 | I4: 22.5 | J4: 30 | K4: 37.5
K5: 37.56
A6: Товар 3 | B6: 3 | C6: 193401 | D6: 6669 | E6: =C6/D6 -> 29 | F6: 6.669 | G6: =F6+6.669 -> 13.338 | H6: 20.007 | I6: 26.676 | J6: 33.345 | K6: 40.014 | L6: 46.683 | M6: 53.352 | N6: 60.021 | O6: 66.69 | P6: 73.359 | Q6: 80.028 | R6: 86.697 | S6: 93.366 | T6: 100.035 | U6: 106.704 | V6: 113.373 | W6: 120.042 | X6: 126.711 | Y6: 133.38 | Z6: 140.049 | AA6: 146.718 | AB6: 153.387 | AC6: =AB6+6.669 -> 160.056 | AD6: =AC6+6.669 -> 166.725 | AE6: =AD6+6.669 -> 173.394 | AF6: =AE6+6.669 -> 180.063 | AG6: =AF6+6.669 -> 186.732 | AH6: =AG6+6.669 -> 193.401
AH7: 191.952
O12: Должно получиться за 28.09.2016
A14: 2016-09-01 | B14: № линии | C14: План на месяц | D14: план на сутки | E14: ст. дн. | F14: =A14 -> 2016-09-01 | G14: =F14+1 -> 2016-09-02 | H14: =G14+1 -> 2016-09-03 | I14: =H14+1 -> 2016-09-04 | J14: =I14+1 -> 2016-09-05 | K14: =J14+1 -> 2016-09-06 | L14: =K14+1 -> 2016-09-07 | M14: =L14+1 -> 2016-09-08 | N14: =M14+1 -> 2016-09-09 | O14: =N14+1 -> 2016-09-10 | P14: =O14+1 -> 2016-09-11 | Q14: =P14+1 -> 2016-09-12 | R14: =Q14+1 -> 2016-09-13 | S14: =R14+1 -> 2016-09-14 | T14: =S14+1 -> 2016-09-15 | U14: =T14+1 -> 2016-09-16 | V14: =U14+1 -> 2016-09-17 | W14: =V14+1 -> 2016-09-18 | X14: =W14+1 -> 2016-09-19 | Y14: =X14+1 -> 2016-09-20 | Z14: =Y14+1 -> 2016-09-21 | AA14: =Z14+1 -> 2016-09-22 | AB14: =AA14+1 -> 2016-09-23 | AC14: =AB14+1 -> 2016-09-24 | AD14: =AC14+1 -> 2016-09-25 | AE14: =AD14+1 -> 2016-09-26 | AF14: =AE14+1 -> 2016-09-27 | AG14: =AF14+1 -> 2016-09-28 | AH14: =AG14+1 -> 2016-09-29 | AI14: =AH14+1 -> 2016-09-30 | AJ14: =AI14+1 -> 2016-10-01
A15: Товар 1 | B15: 7 | C15: 13000 | D15: 2600 | E15: =C15/D15 -> 5 | I15: 2.6 | J15: =I15+2.6 -> 5.2 | K15: =J15+2.6 -> 7.8 | L15: 10.4 | M15: 13
M16: 12.976
A17: Товар 2 | B17: 6 | C17: 37500 | D17: 7500 | E17: =C17/D17 -> 5 | G17: 7.5 | H17: =G17+7.5 -> 15 | I17: =H17+7.5 -> 22.5 | J17: =I17+7.5 -> 30 | K17: =J17+7.5 -> 37.5
K18: 37.56
A19: Товар 3 | B19: 3 | C19: 193401 | D19: 6669 | E19: =C19/D19 -> 29 | F19: 6.669 | G19: =F19+6.669 -> 13.338 | H19: =G19+6.669 -> 20.007 | I19: =H19+6.669 -> 26.676 | J19: =I19+6.669 -> 33.345 | K19: =J19+6.669 -> 40.014 | L19: =K19+6.669 -> 46.683 | M19: =L19+6.669 -> 53.352 | N19: =M19+6.669 -> 60.021 | O19: =N19+6.669 -> 66.69 | P19: =O19+6.669 -> 73.359 | Q19: =P19+6.669 -> 80.028 | R19: =Q19+6.669 -> 86.697 | S19: =R19+6.669 -> 93.366 | T19: =S19+6.669 -> 100.035 | U19: =T19+6.669 -> 106.704 | V19: =U19+6.669 -> 113.373 | W19: =V19+6.669 -> 120.042 | X19: =W19+6.669 -> 126.711 | Y19: =X19+6.669 -> 133.38 | Z19: =Y19+6.669 -> 140.049 | AA19: =Z19+6.669 -> 146.718 | AB19: =AA19+6.669 -> 153.387 | AC19: =AB19+6.669 -> 160.056 | AD19: =AC19+6.669 -> 166.725 | AE19: =AD19+6.669 -> 173.394 | AF19: =AE19+6.669 -> 180.063 | AG19: =AF19+6.669 -> 186.732 | AH19: =AG19+6.669 -> 193.401
AG20: 191.952
A23: После заполнения столбца Е на листе "отчет", на листе "план_график" в строках 3, 5 и 7 должны появиться соответствующие данные за вчерашний день (с учетом выполненного плана, см. образец ниже).

Sheet факт
B3: 2016-09-01 | D3: 2016-09-02 | F3: 2016-09-03 | H3: 2016-09-04 | J3: 2016-09-05 | L3: 2016-09-06 | N3: 2016-09-07 | P3: 2016-09-08 | R3: 2016-09-09 | T3: 2016-09-10 | V3: 2016-09-11 | X3: 2016-09-12 | Z3: 2016-09-13 | AB3: 2016-09-14 | AD3: 2016-09-15 | AF3: 2016-09-16 | AH3: 2016-09-17 | AJ3: 2016-09-18 | AL3: 2016-09-19 | AN3: 2016-09-20 | AP3: 2016-09-21 | AR3: 2016-09-22 | AT3: 2016-09-23 | AV3: 2016-09-24 | AX3: 2016-09-25 | AZ3: 2016-09-26 | BB3: 2016-09-27 | BD3: 2016-09-28 | BF3: 2016-09-29 | BH3: 2016-09-30 | BJ3: 2016-10-01
B4: 2016-09-01 | D4: 2016-09-02 | F4: 2016-09-03 | H4: 2016-09-04 | J4: 2016-09-05 | L4: 2016-09-06 | N4: 2016-09-07 | P4: 2016-09-08 | R4: 2016-09-09 | T4: 2016-09-10 | V4: 2016-09-11 | X4: 2016-09-12 | Z4: 2016-09-13 | AB4: 2016-09-14 | AD4: 2016-09-15 | AF4: 2016-09-16 | AH4: 2016-09-17 | AJ4: 2016-09-18 | AL4: 2016-09-19 | AN4: 2016-09-20 | AP4: 2016-09-21 | AR4: 2016-09-22 | AT4: 2016-09-23 | AV4: 2016-09-24 | AX4: 2016-09-25 | AZ4: 2016-09-26 | BB4: 2016-09-27 | BD4: 2016-09-28 | BF4: 2016-09-29 | BH4: 2016-09-30 | BJ4: 2016-10-01
A5: Наименование товаров | B5: день | C5: ночь | D5: день | E5: ночь | F5: день | G5: ночь | H5: день | I5: ночь | J5: день | K5: ночь | L5: день | M5: ночь | N5: день | O5: ночь | P5: день | Q5: ночь | R5: день | S5: ночь | T5: день | U5: ночь | V5: день | W5: ночь | X5: день | Y5: ночь | Z5: день | AA5: ночь | AB5: день | AC5: ночь | AD5: день | AE5: ночь | AF5: день | AG5: ночь | AH5: день | AI5: ночь | AJ5: день | AK5: ночь | AL5: день | AM5: ночь | AN5: день | AO5: ночь | AP5: день | AQ5: ночь | AR5: день | AS5: ночь | AT5: день | AU5: ночь | AV5: день | AW5: ночь | AX5: день | AY5: ночь | AZ5: день | BA5: ночь | BB5: день | BC5: ночь | BD5: день | BE5: ночь | BF5: день | BG5: ночь | BH5: день | BI5: ночь | BJ5: день | BK5: ночь | BL5: План | BM5: Выполнение плана | BN5: %
B6: Кол-во пог.м | D6: Кол-во пог.м | F6: Кол-во пог.м | H6: Кол-во пог.м | J6: Кол-во пог.м | L6: Кол-во пог.м | N6: Кол-во пог.м | P6: Кол-во пог.м | R6: Кол-во пог.м | T6: Кол-во пог.м | V6: Кол-во пог.м | X6: Кол-во пог.м | Z6: Кол-во пог.м | AB6: Кол-во пог.м | AD6: Кол-во пог.м | AF6: Кол-во пог.м | AH6: Кол-во пог.м | AJ6: Кол-во пог.м | AL6: Кол-во пог.м | AN6: Кол-во пог.м | AP6: Кол-во пог.м | AR6: Кол-во пог.м | AT6: Кол-во пог.м | AV6: Кол-во пог.м | AX6: Кол-во пог.м | AZ6: Кол-во пог.м | BB6: Кол-во пог.м | BD6: Кол-во пог.м | BF6: Кол-во пог.м | BH6: Кол-во пог.м | BJ6: Кол-во пог.м | BL6: м | BM6: м
A7: Товар 1 | H7: 1264 | I7: 1304 | J7: 1304 | K7: 1304 | L7: 1304 | M7: 1304 | N7: 1304 | O7: 1304 | P7: 1304 | Q7: 1280 | BL7: 13000 | BM7: =SUM(B7:BK7) -> 12976 | BN7: =BM7/BL7 -> 0.9981538462
A8: Товар 2 | D8: 3720 | E8: 3720 | F8: 3720 | G8: 3720 | H8: 3720 | I8: 3720 | J8: 3720 | K8: 3720 | L8: 3720 | M8: 3720 | N8: 360 | BL8: 37500 | BM8: =SUM(B8:BK8) -> 37560 | BN8: =BM8/BL8 -> 1.0016
A9: Товар 3 | B9: 1872 | C9: 3456 | D9: 3456 | E9: 3456 | F9: 3456 | G9: 3456 | H9: 3456 | I9: 3456 | J9: 3456 | K9: 3456 | L9: 3456 | M9: 3456 | N9: 3456 | O9: 3456 | P9: 3456 | Q9: 3456 | R9: 3456 | S9: 3456 | T9: 3456 | U9: 3456 | V9: 3456 | W9: 3456 | X9: 3456 | Y9: 3456 | Z9: 3456 | AA9: 3456 | AB9: 3456 | AC9: 3456 | AD9: 3456 | AE9: 3456 | AF9: 3456 | AG9: 3456 | AH9: 3456 | AI9: 3456 | AJ9: 3456 | AK9: 3456 | AL9: 3456 | AM9: 3456 | AN9: 3456 | AO9: 3456 | AP9: 3456 | AQ9: 3456 | AR9: 3456 | AS9: 3456 | AT9: 3456 | AU9: 3456 | AV9: 3456 | AW9: 3456 | AX9: 3456 | AY9: 3456 | AZ9: 3456 | BA9: 3456 | BB9: 3456 | BC9: 3456 | BD9: 3456 | BE9: 3456 | BF9: 1449 | BL9: 193401 | BM9: 193401 | BN9: 1

Sheet смена
B3: 2016-09-01 | D3: =B3+1 -> 2016-09-02 | F3: =D3+1 -> 2016-09-03 | H3: =F3+1 -> 2016-09-04 | J3: =H3+1 -> 2016-09-05 | L3: =J3+1 -> 2016-09-06 | N3: =L3+1 -> 2016-09-07 | P3: =N3+1 -> 2016-09-08 | R3: =P3+1 -> 2016-09-09 | T3: =R3+1 -> 2016-09-10 | V3: =T3+1 -> 2016-09-11 | X3: =V3+1 -> 2016-09-12 | Z3: =X3+1 -> 2016-09-13 | AB3: =Z3+1 -> 2016-09-14 | AD3: =AB3+1 -> 2016-09-15 | AF3: =AD3+1 -> 2016-09-16 | AH3: =AF3+1 -> 2016-09-17 | AJ3: =AH3+1 -> 2016-09-18 | AL3: =AJ3+1 -> 2016-09-19 | AN3: =AL3+1 -> 2016-09-20 | AP3: =AN3+1 -> 2016-09-21 | AR3: =AP3+1 -> 2016-09-22 | AT3: =AR3+1 -> 2016-09-23 | AV3: =AT3+1 -> 2016-09-24 | AX3: =AV3+1 -> 2016-09-25 | AZ3: =AX3+1 -> 2016-09-26 | BB3: =AZ3+1 -> 2016-09-27 | BD3: =BB3+1 -> 2016-09-28 | BF3: =BD3+1 -> 2016-09-29 | BH3: =BF3+1 -> 2016-09-30 | BJ3: =BH3+1 -> 2016-10-01
B4: 2016-09-01 | D4: 2016-09-02 | F4: 2016-09-03 | H4: 2016-09-04 | J4: 2016-09-05 | L4: 2016-09-06 | N4: 2016-09-07 | P4: 2016-09-08 | R4: 2016-09-09 | T4: 2016-09-10 | V4: 2016-09-11 | X4: 2016-09-12 | Z4: 2016-09-13 | AB4: 2016-09-14 | AD4: 2016-09-15 | AF4: 2016-09-16 | AH4: 2016-09-17 | AJ4: 2016-09-18 | AL4: 2016-09-19 | AN4: 2016-09-20 | AP4: 2016-09-21 | AR4: 2016-09-22 | AT4: 2016-09-23 | AV4: 2016-09-24 | AX4: 2016-09-25 | AZ4: 2016-09-26 | BB4: 2016-09-27 | BD4: 2016-09-28 | BF4: 2016-09-29 | BH4: 2016-09-30 | BJ4: 2016-10-01
A5: Наименование товаров | B5: день | C5: ночь | D5: день | E5: ночь | F5: день | G5: ночь | H5: день | I5: ночь | J5: день | K5: ночь | L5: день | M5: ночь | N5: день | O5: ночь | P5: день | Q5: ночь | R5: день | S5: ночь | T5: день | U5: ночь | V5: день | W5: ночь | X5: день | Y5: ночь | Z5: день | AA5: ночь | AB5: день | AC5: ночь | AD5: день | AE5: ночь | AF5: день | AG5: ночь | AH5: день | AI5: ночь | AJ5: день | AK5: ночь | AL5: день | AM5: ночь | AN5: день | AO5: ночь | AP5: день | AQ5: ночь | AR5: день | AS5: ночь | AT5: день | AU5: ночь | AV5: день | AW5: ночь | AX5: день | AY5: ночь | AZ5: день | BA5: ночь | BB5: день | BC5: ночь | BD5: день | BE5: ночь | BF5: день | BG5: ночь | BH5: день | BI5: ночь | BJ5: день | BK5: ночь | BL5: Выполнение плана
B6: Кол-во пог.м | D6: Кол-во пог.м | F6: Кол-во пог.м | H6: Кол-во пог.м | J6: Кол-во пог.м | L6: Кол-во пог.м | N6: Кол-во пог.м | P6: Кол-во пог.м | R6: Кол-во пог.м | T6: Кол-во пог.м | V6: Кол-во пог.м | X6: Кол-во пог.м | Z6: Кол-во пог.м | AB6: Кол-во пог.м | AD6: Кол-во пог.м | AF6: Кол-во пог.м | AH6: Кол-во пог.м | AJ6: Кол-во пог.м | AL6: Кол-во пог.м | AN6: Кол-во пог.м | AP6: Кол-во пог.м | AR6: Кол-во пог.м | AT6: Кол-во пог.м | AV6: Кол-во пог.м | AX6: Кол-во пог.м | AZ6: Кол-во пог.м | BB6: Кол-во пог.м | BD6: Кол-во пог.м | BF6: Кол-во пог.м | BH6: Кол-во пог.м | BJ6: Кол-во пог.м | BL6: м
A7: Товар 1 | B7: =IF(B$3<=отчет!$H$1,факт!B7,"") -> 0 | C7: =IF(B$3<=отчет!$H$1,факт!C7,"") -> 0 | D7: =IF(D$3<=отчет!$H$1,факт!D7,"") -> 0 | E7: =IF(D$3<=отчет!$H$1,факт!E7,"") -> 0 | F7: =IF(F$3<=отчет!$H$1,факт!F7,"") -> 0 | G7: =IF(F$3<=отчет!$H$1,факт!G7,"") -> 0 | H7: =IF(H$3<=отчет!$H$1,факт!H7,"") -> 1264 | I7: =IF(H$3<=отчет!$H$1,факт!I7,"") -> 1304 | J7: =IF(J$3<=отчет!$H$1,факт!J7,"") -> 1304 | K7: =IF(J$3<=отчет!$H$1,факт!K7,"") -> 1304 | L7: =IF(L$3<=отчет!$H$1,факт!L7,"") -> 1304 | M7: =IF(L$3<=отчет!$H$1,факт!M7,"") -> 1304 | N7: =IF(N$3<=отчет!$H$1,факт!N7,"") -> 1304 | O7: =IF(N$3<=отчет!$H$1,факт!O7,"") -> 1304 | P7: =IF(P$3<=отчет!$H$1,факт!P7,"") -> 1304 | Q7: =IF(P$3<=отчет!$H$1,факт!Q7,"") -> 1280 | R7: =IF(R$3<=отчет!$H$1,факт!R7,"") -> 0 | S7: =IF(R$3<=отчет!$H$1,факт!S7,"") -> 0 | T7: =IF(T$3<=отчет!$H$1,факт!T7,"") -> 0 | U7: =IF(T$3<=отчет!$H$1,факт!U7,"") -> 0 | V7: =IF(V$3<=отчет!$H$1,факт!V7,"") -> 0 | W7: =IF(V$3<=отчет!$H$1,факт!W7,"") -> 0 | X7: =IF(X$3<=отчет!$H$1,факт!X7,"") -> 0 | Y7: =IF(X$3<=отчет!$H$1,факт!Y7,"") -> 0 | Z7: =IF(Z$3<=отчет!$H$1,факт!Z7,"") -> 0 | AA7: =IF(Z$3<=отчет!$H$1,факт!AA7,"") -> 0 | AB7: =IF(AB$3<=отчет!$H$1,факт!AB7,"") -> 0 | AC7: =IF(AB$3<=отчет!$H$1,факт!AC7,"") -> 0 | AD7: =IF(AD$3<=отчет!$H$1,факт!AD7,"") -> 0 | AE7: =IF(AD$3<=отчет!$H$1,факт!AE7,"") -> 0 | AF7: =IF(AF$3<=отчет!$H$1,факт!AF7,"") -> 0 | AG7: =IF(AF$3<=отчет!$H$1,факт!AG7,"") -> 0 | AH7: =IF(AH$3<=отчет!$H$1,факт!AH7,"") -> 0 | AI7: =IF(AH$3<=отчет!$H$1,факт!AI7,"") -> 0 | AJ7: =IF(AJ$3<=отчет!$H$1,факт!AJ7,"") -> 0 | AK7: =IF(AJ$3<=отчет!$H$1,факт!AK7,"") -> 0 | AL7: =IF(AL$3<=отчет!$H$1,факт!AL7,"") -> 0 | AM7: =IF(AL$3<=отчет!$H$1,факт!AM7,"") -> 0 | AN7: =IF(AN$3<=отчет!$H$1,факт!AN7,"") -> 0 | AO7: =IF(AN$3<=отчет!$H$1,факт!AO7,"") -> 0 | AP7: =IF(AP$3<=отчет!$H$1,факт!AP7,"") -> 0 | AQ7: =IF(AP$3<=отчет!$H$1,факт!AQ7,"") -> 0 | AR7: =IF(AR$3<=отчет!$H$1,факт!AR7,"") -> 0 | AS7: =IF(AR$3<=отчет!$H$1,факт!AS7,"") -> 0 | AT7: =IF(AT$3<=отчет!$H$1,факт!AT7,"") -> 0 | AU7: =IF(AT$3<=отчет!$H$1,факт!AU7,"") -> 0 | AV7: =IF(AV$3<=отчет!$H$1,факт!AV7,"") -> 0 | AW7: =IF(AV$3<=отчет!$H$1,факт!AW7,"") -> 0 | AX7: =IF(AX$3<=отчет!$H$1,факт!AX7,"") -> 0 | AY7: =IF(AX$3<=отчет!$H$1,факт!AY7,"") -> 0 | AZ7: =IF(AZ$3<=отчет!$H$1,факт!AZ7,"") -> 0 | BA7: =IF(AZ$3<=отчет!$H$1,факт!BA7,"") -> 0 | BB7: =IF(BB$3<=отчет!$H$1,факт!BB7,"") -> 0 | BC7: =IF(BB$3<=отчет!$H$1,факт!BC7,"") -> 0 | BD7: =IF(BD$3<=отчет!$H$1,факт!BD7,"") -> 0 | BE7: =IF(BD$3<=отчет!$H$1,факт!BE7,"") -> 0 | BF7: =IF(BF$3<=отчет!$H$1,факт!BF7,"") ->  | BG7: =IF(BF$3<=отчет!$H$1,факт!BG7,"") ->  | BH7: =IF(BH$3<=отчет!$H$1,факт!BH7,"") ->  | BI7: =IF(BH$3<=отчет!$H$1,факт!BI7,"") ->  | BJ7: =IF(BJ$3<=отчет!$H$1,факт!BJ7,"") ->  | BK7: =IF(BJ$3<=отчет!$H$1,факт!BK7,"") ->  | BL7: =SUM(B7:BK7) -> 12976
A8: Товар 2 | B8: =IF(B$3<=отчет!$H$1,факт!B8,"") -> 0 | C8: =IF(B$3<=отчет!$H$1,факт!C8,"") -> 0 | D8: =IF(D$3<=отчет!$H$1,факт!D8,"") -> 3720 | E8: =IF(D$3<=отчет!$H$1,факт!E8,"") -> 3720 | F8: =IF(F$3<=отчет!$H$1,факт!F8,"") -> 3720 | G8: =IF(F$3<=отчет!$H$1,факт!G8,"") -> 3720 | H8: =IF(H$3<=отчет!$H$1,факт!H8,"") -> 3720 | I8: =IF(H$3<=отчет!$H$1,факт!I8,"") -> 3720 | J8: =IF(J$3<=отчет!$H$1,факт!J8,"") -> 3720 | K8: =IF(J$3<=отчет!$H$1,факт!K8,"") -> 3720 | L8: =IF(L$3<=отчет!$H$1,факт!L8,"") -> 3720 | M8: =IF(L$3<=отчет!$H$1,факт!M8,"") -> 3720 | N8: =IF(N$3<=отчет!$H$1,факт!N8,"") -> 360 | O8: =IF(N$3<=отчет!$H$1,факт!O8,"") -> 0 | P8: =IF(P$3<=отчет!$H$1,факт!P8,"") -> 0 | Q8: =IF(P$3<=отчет!$H$1,факт!Q8,"") -> 0 | R8: =IF(R$3<=отчет!$H$1,факт!R8,"") -> 0 | S8: =IF(R$3<=отчет!$H$1,факт!S8,"") -> 0 | T8: =IF(T$3<=отчет!$H$1,факт!T8,"") -> 0 | U8: =IF(T$3<=отчет!$H$1,факт!U8,"") -> 0 | V8: =IF(V$3<=отчет!$H$1,факт!V8,"") -> 0 | W8: =IF(V$3<=отчет!$H$1,факт!W8,"") -> 0 | X8: =IF(X$3<=отчет!$H$1,факт!X8,"") -> 0 | Y8: =IF(X$3<=отчет!$H$1,факт!Y8,"") -> 0 | Z8: =IF(Z$3<=отчет!$H$1,факт!Z8,"") -> 0 | AA8: =IF(Z$3<=отчет!$H$1,факт!AA8,"") -> 0 | AB8: =IF(AB$3<=отчет!$H$1,факт!AB8,"") -> 0 | AC8: =IF(AB$3<=отчет!$H$1,факт!AC8,"") -> 0 | AD8: =IF(AD$3<=отчет!$H$1,факт!AD8,"") -> 0 | AE8: =IF(AD$3<=отчет!$H$1,факт!AE8,"") -> 0 | AF8: =IF(AF$3<=отчет!$H$1,факт!AF8,"") -> 0 | AG8: =IF(AF$3<=отчет!$H$1,факт!AG8,"") -> 0 | AH8: =IF(AH$3<=отчет!$H$1,факт!AH8,"") -> 0 | AI8: =IF(AH$3<=отчет!$H$1,факт!AI8,"") -> 0 | AJ8: =IF(AJ$3<=отчет!$H$1,факт!AJ8,"") -> 0 | AK8: =IF(AJ$3<=отчет!$H$1,факт!AK8,"") -> 0 | AL8: =IF(AL$3<=отчет!$H$1,факт!AL8,"") -> 0 | AM8: =IF(AL$3<=отчет!$H$1,факт!AM8,"") -> 0 | AN8: =IF(AN$3<=отчет!$H$1,факт!AN8,"") -> 0 | AO8: =IF(AN$3<=отчет!$H$1,факт!AO8,"") -> 0 | AP8: =IF(AP$3<=отчет!$H$1,факт!AP8,"") -> 0 | AQ8: =IF(AP$3<=отчет!$H$1,факт!AQ8,"") -> 0 | AR8: =IF(AR$3<=отчет!$H$1,факт!AR8,"") -> 0 | AS8: =IF(AR$3<=отчет!$H$1,факт!AS8,"") -> 0 | AT8: =IF(AT$3<=отчет!$H$1,факт!AT8,"") -> 0 | AU8: =IF(AT$3<=отчет!$H$1,факт!AU8,"") -> 0 | AV8: =IF(AV$3<=отчет!$H$1,факт!AV8,"") -> 0 | AW8: =IF(AV$3<=отчет!$H$1,факт!AW8,"") -> 0 | AX8: =IF(AX$3<=отчет!$H$1,факт!AX8,"") -> 0 | AY8: =IF(AX$3<=отчет!$H$1,факт!AY8,"") -> 0 | AZ8: =IF(AZ$3<=отчет!$H$1,факт!AZ8,"") -> 0 | BA8: =IF(AZ$3<=отчет!$H$1,факт!BA8,"") -> 0 | BB8: =IF(BB$3<=отчет!$H$1,факт!BB8,"") -> 0 | BC8: =IF(BB$3<=отчет!$H$1,факт!BC8,"") -> 0 | BD8: =IF(BD$3<=отчет!$H$1,факт!BD8,"") -> 0 | BE8: =IF(BD$3<=отчет!$H$1,факт!BE8,"") -> 0 | BF8: =IF(BF$3<=отчет!$H$1,факт!BF8,"") ->  | BG8: =IF(BF$3<=отчет!$H$1,факт!BG8,"") ->  | BH8: =IF(BH$3<=отчет!$H$1,факт!BH8,"") ->  | BI8: =IF(BH$3<=отчет!$H$1,факт!BI8,"") ->  | BJ8: =IF(BJ$3<=отчет!$H$1,факт!BJ8,"") ->  | BK8: =IF(BJ$3<=отчет!$H$1,факт!BK8,"") ->  | BL8: =SUM(B8:BK8) -> 37560
A9: Товар 3 | B9: =IF(B$3<=отчет!$H$1,факт!B9,"") -> 1872 | C9: =IF(B$3<=отчет!$H$1,факт!C9,"") -> 3456 | D9: =IF(D$3<=отчет!$H$1,факт!D9,"") -> 3456 | E9: =IF(D$3<=отчет!$H$1,факт!E9,"") -> 3456 | F9: =IF(F$3<=отчет!$H$1,факт!F9,"") -> 3456 | G9: =IF(F$3<=отчет!$H$1,факт!G9,"") -> 3456 | H9: =IF(H$3<=отчет!$H$1,факт!H9,"") -> 3456 | I9: =IF(H$3<=отчет!$H$1,факт!I9,"") -> 3456 | J9: =IF(J$3<=отчет!$H$1,факт!J9,"") -> 3456 | K9: =IF(J$3<=отчет!$H$1,факт!K9,"") -> 3456 | L9: =IF(L$3<=отчет!$H$1,факт!L9,"") -> 3456 | M9: =IF(L$3<=отчет!$H$1,факт!M9,"") -> 3456 | N9: =IF(N$3<=отчет!$H$1,факт!N9,"") -> 3456 | O9: =IF(N$3<=отчет!$H$1,факт!O9,"") -> 3456 | P9: =IF(P$3<=отчет!$H$1,факт!P9,"") -> 3456 | Q9: =IF(P$3<=отчет!$H$1,факт!Q9,"") -> 3456 | R9: =IF(R$3<=отчет!$H$1,факт!R9,"") -> 3456 | S9: =IF(R$3<=отчет!$H$1,факт!S9,"") -> 3456 | T9: =IF(T$3<=отчет!$H$1,факт!T9,"") -> 3456 | U9: =IF(T$3<=отчет!$H$1,факт!U9,"") -> 3456 | V9: =IF(V$3<=отчет!$H$1,факт!V9,"") -> 3456 | W9: =IF(V$3<=отчет!$H$1,факт!W9,"") -> 3456 | X9: =IF(X$3<=отчет!$H$1,факт!X9,"") -> 3456 | Y9: =IF(X$3<=отчет!$H$1,факт!Y9,"") -> 3456 | Z9: =IF(Z$3<=отчет!$H$1,факт!Z9,"") -> 3456 | AA9: =IF(Z$3<=отчет!$H$1,факт!AA9,"") -> 3456 | AB9: =IF(AB$3<=отчет!$H$1,факт!AB9,"") -> 3456 | AC9: =IF(AB$3<=отчет!$H$1,факт!AC9,"") -> 3456 | AD9: =IF(AD$3<=отчет!$H$1,факт!AD9,"") -> 3456 | AE9: =IF(AD$3<=отчет!$H$1,факт!AE9,"") -> 3456 | AF9: =IF(AF$3<=отчет!$H$1,факт!AF9,"") -> 3456 | AG9: =IF(AF$3<=отчет!$H$1,факт!AG9,"") -> 3456 | AH9: =IF(AH$3<=отчет!$H$1,факт!AH9,"") -> 3456 | AI9: =IF(AH$3<=отчет!$H$1,факт!AI9,"") -> 3456 | AJ9: =IF(AJ$3<=отчет!$H$1,факт!AJ9,"") -> 3456 | AK9: =IF(AJ$3<=отчет!$H$1,факт!AK9,"") -> 3456 | AL9: =IF(AL$3<=отчет!$H$1,факт!AL9,"") -> 3456 | AM9: =IF(AL$3<=отчет!$H$1,факт!AM9,"") -> 3456 | AN9: =IF(AN$3<=отчет!$H$1,факт!AN9,"") -> 3456 | AO9: =IF(AN$3<=отчет!$H$1,факт!AO9,"") -> 3456 | AP9: =IF(AP$3<=отчет!$H$1,факт!AP9,"") -> 3456 | AQ9: =IF(AP$3<=отчет!$H$1,факт!AQ9,"") -> 3456 | AR9: =IF(AR$3<=отчет!$H$1,факт!AR9,"") -> 3456 | AS9: =IF(AR$3<=отчет!$H$1,факт!AS9,"") -> 3456 | AT9: =IF(AT$3<=отчет!$H$1,факт!AT9,"") -> 3456 | AU9: =IF(AT$3<=отчет!$H$1,факт!AU9,"") -> 3456 | AV9: =IF(AV$3<=отчет!$H$1,факт!AV9,"") -> 3456 | AW9: =IF(AV$3<=отчет!$H$1,факт!AW9,"") -> 3456 | AX9: =IF(AX$3<=отчет!$H$1,факт!AX9,"") -> 3456 | AY9: =IF(AX$3<=отчет!$H$1,факт!AY9,"") -> 3456 | AZ9: =IF(AZ$3<=отчет!$H$1,факт!AZ9,"") -> 3456 | BA9: =IF(AZ$3<=отчет!$H$1,факт!BA9,"") -> 3456 | BB9: =IF(BB$3<=отчет!$H$1,факт!BB9,"") -> 3456 | BC9: =IF(BB$3<=отчет!$H$1,факт!BC9,"") -> 3456 | BD9: =IF(BD$3<=отчет!$H$1,факт!BD9,"") -> 3456 | BE9: =IF(BD$3<=отчет!$H$1,факт!BE9,"") -> 3456 | BF9: =IF(BF$3<=отчет!$H$1,факт!BF9,"") ->  | BG9: =IF(BF$3<=отчет!$H$1,факт!BG9,"") ->  | BH9: =IF(BH$3<=отчет!$H$1,факт!BH9,"") ->  | BI9: =IF(BH$3<=отчет!$H$1,факт!BI9,"") ->  | BJ9: =IF(BJ$3<=отчет!$H$1,факт!BJ9,"") ->  | BK9: =IF(BJ$3<=отчет!$H$1,факт!BK9,"") ->  | BL9: 191952
